Workbook

Sheet Rankning Mjölkintäkt
D2: Avkastning senaste 12-mån | M2: Priser (Maj 2026) | W2: =LOOKUP(2,1/('Rankning Mjölkintäkt'!$W$14:$W$383<>""),'Rankning Mjölkintäkt'!$A$14:$A$426) -> 63
D3: Rangering kg mjölk / kg ECM / kg f+p / total intäkt / intäkt minus foder | M3: Pris per kg fett | O3: 60.22 | P3: Kvalitetstillägg | R3: =2%+2% -> 0.04 | W3: =LOOKUP(2,1/('Rankning Mjölkintäkt'!$W$14:$W$383<>""),'Rankning Mjölkintäkt'!$A$14:$A$426)-12 -> 51
M4: Pris per kg protein | O4: 48.19 | P4: Hållbarhet, icke GMO, Klimat | R4: 0.0207 | S4: av intäkt från råvaran
M5: Avdrag eller tillägg per kg mjölk | O5: -0.2318 | P5: Logistiktillägg | R5: =0.113+0.224+0.031-0.017 -> 0.351 | S5: kr per kg mjölk
M6: Nationellt stöd | P6: Efterlikvid | R6: =0.17 -> 0.17 | S6: kr per kg mjölk
M7: Foderkostnad SEK/ECM | O7: 2.07
M8: Antal kor som ska rankas | O8: 50
O9: =IF(O8-W3<0,,O8-W3) -> 0
B11: Grunduppgifter | F11: Provmjölkning | G11: 12-m avkastning | N11: Resultat - intäkter | U11: Resultat - ranking | AA11: Foder
B12: Se-Id | C12: Löpnr | D12: Kort namn | E12: Kalvn.nr | F12: Sen. provmj.datum | G12: Mjölk, kg | H12: ECM, kg | I12: Fett % | J12: kg fett | K12: Protein % | L12: kg protein | M12: kg fett + protein | N12: Intäkt för mjölkråvara och ev stöd | O12: Intäkt med kvalitetstillägg | P12: Intäkt med kvalitet och hållbarhet | Q12: Intäkt med kvalitet, hållbarhet och logistik | R12: Inkl. efterlikvid och konsolidering | S12: Kons mjölkpris per kg mjölk utan tillägg | T12: Kons mjölkpris med tillägg | U12: Rank kg mjölk | V12: Rank kg ECM | W12: rank kg fett + protein | X12: Rank intäkt mjölkråvara | Y12: Rank intäkt m fulla tillägg | Z12: Rank intäkt inkl efterlikvid - total intäkt | AA12: Foderkostnad | AB12: Intäkt inkl tillägg minus foder | AC12: Rank intäkt - foder
B13: Se-Id | C13: Löpnr | D13: Kort namn | E13: Kalvn.nr | F13: Sen. provmj.datum | G13: Mjölk, kg | H13: ECM, kg | I13: Fett % | J13: kg fett | K13: Protein % | L13: kg protein | M13: kg fett + protein | N13: Intäkt för mjölkråvara | O13: Intäkt med kvalitetstillägg | P13: Intäkt med kvalitet och hållbarhet | Q13: Intäkt med kvalitet, hållbarhet och logistik | R13: Inkl. efterlikvid och konsolidering | S13: Kons mjölkpris per kg mjölk utan tillägg | T13: Kons mjölkpris med tillägg | U13: Rank kg mjölk | V13: Rank kg ECM | W13: rank kg fett + protein | X13: Rank intäkt mjölkråvara | Y13: Rank intäkt m fulla tillägg | Z13: Rank intäkt inkl efterlikvid - total intäkt | AA13: Foderkostnad | AB13: Intäkt inkl tillägg minus foder | AC13: Rank intäkt - foder
A14: =ROW() -> 14 | F14: 2025-09-23 | G14: 15697 | H14: 14760 | I14: 3.5 | J14: 548 | K14: 3.4 | L14: 538 | M14: =J14+L14 -> 1086 | N14: =($O$3*J14)+(L14*$O$4)+(G14*($O$5+$O$6)) -> 55288.2154 | O14: =N14*(1+$R$3) -> 57499.74402 | P14: =O14+(N14*$R$4) -> 58644.21007 | Q14: =P14+(G14*$R$5) -> 64153.85707 | R14: =Q14+(G14*$R$6) -> 66822.34707 | S14: =N14/G14 -> 3.522215417 | T14: =Q14/G14 -> 4.087013893 | U14: =_xlfn.RANK.EQ(G14,G$14:G$63) -> 1 | V14: =_xlfn.RANK.EQ(H14,H$14:H$63) -> 34 | W14: =_xlfn.RANK.EQ(M14,M$14:M$63) -> 44 | X14: =_xlfn.RANK.EQ(N14,N$14:N$63) -> 47 | Y14: =_xlfn.RANK.EQ(Q14,Q$14:Q$63) -> 46 | Z14: =_xlfn.RANK.EQ(R14,R$14:R$63) -> 44 | AA14: =H14*-$O$7 -> -30553.2 | AB14: =R14+AA14 -> 36269.14707 | AC14: =_xlfn.RANK.EQ(AB14,AB$14:AB$63) -> 47
A15: =ROW() -> 15 | F15: 2025-09-23 | G15: 15150 | H15: 16171 | I15: 4.4 | J15: 663 | K15: 3.7 | L15: 558 | M15: =J15+L15 -> 1221 | N15: =($O$3*J15)+(L15*$O$4)+(G15*($O$5+$O$6)) -> 63304.11 | O15: =N15*(1+$R$3) -> 65836.2744 | P15: =O15+(N15*$R$4) -> 67146.66948 | Q15: =P15+(G15*$R$5) -> 72464.31948 | R15: =Q15+(G15*$R$6) -> 75039.81948 | S15: =N15/G15 -> 4.178489109 | T15: =Q15/G15 -> 4.783123398 | U15: =_xlfn.RANK.EQ(G15,G$14:G$63) -> 2 | V15: =_xlfn.RANK.EQ(H15,H$14:H$63) -> 7 | W15: =_xlfn.RANK.EQ(M15,M$14:M$63) -> 6 | X15: =_xlfn.RANK.EQ(N15,N$14:N$63) -> 8 | Y15: =_xlfn.RANK.EQ(Q15,Q$14:Q$63) -> 7 | Z15: =_xlfn.RANK.EQ(R15,R$14:R$63) -> 7 | AA15: =H15*-$O$7 -> -33473.97 | AB15: =R15+AA15 -> 41565.84948 | AC15: =_xlfn.RANK.EQ(AB15,AB$14:AB$63) -> 7
A16: =ROW() -> 16 | F16: 2025-09-23 | G16: 15147 | H16: 16276 | I16: 4.6 | J16: 694 | K16: 3.4 | L16: 522 | M16: =J16+L16 -> 1216 | N16: =($O$3*J16)+(L16*$O$4)+(G16*($O$5+$O$6)) -> 63436.7854 | O16: =N16*(1+$R$3) -> 65974.25682 | P16: =O16+(N16*$R$4) -> 67287.39827 | Q16: =P16+(G16*$R$5) -> 72603.99527 | R16: =Q16+(G16*$R$6) -> 75178.98527 | S16: =N16/G16 -> 4.188075883 | T16: =Q16/G16 -> 4.793292089 | U16: =_xlfn.RANK.EQ(G16,G$14:G$63) -> 3 | V16: =_xlfn.RANK.EQ(H16,H$14:H$63) -> 4 | W16: =_xlfn.RANK.EQ(M16,M$14:M$63) -> 7 | X16: =_xlfn.RANK.EQ(N16,N$14:N$63) -> 7 | Y16: =_xlfn.RANK.EQ(Q16,Q$14:Q$63) -> 6 | Z16: =_xlfn.RANK.EQ(R16,R$14:R$63) -> 6 | AA16: =H16*-$O$7 -> -33691.32 | AB16: =R16+AA16 -> 41487.66527 | AC16: =_xlfn.RANK.EQ(AB16,AB$14:AB$63) -> 8
A17: =ROW() -> 17 | F17: 2025-10-01 | G17: 14939 | H17: 14878 | I17: 3.8 | J17: 563 | K17: 3.7 | L17: 555 | M17: =J17+L17 -> 1118 | N17: =($O$3*J17)+(L17*$O$4)+(G17*($O$5+$O$6)) -> 57186.4498 | O17: =N17*(1+$R$3) -> 59473.90779 | P17: =O17+(N17*$R$4) -> 60657.6673 | Q17: =P17+(G17*$R$5) -> 65901.2563 | R17: =Q17+(G17*$R$6) -> 68440.8863 | S17: =N17/G17 -> 3.827997175 | T17: =Q17/G17 -> 4.411356604 | U17: =_xlfn.RANK.EQ(G17,G$14:G$63) -> 4 | V17: =_xlfn.RANK.EQ(H17,H$14:H$63) -> 22 | W17: =_xlfn.RANK.EQ(M17,M$14:M$63) -> 34 | X17: =_xlfn.RANK.EQ(N17,N$14:N$63) -> 41 | Y17: =_xlfn.RANK.EQ(Q17,Q$14:Q$63) -> 35 | Z17: =_xlfn.RANK.EQ(R17,R$14:R$63) -> 35 | AA17: =H17*-$O$7 -> -30797.46 | AB17: =R17+AA17 -> 37643.4263 | AC17: =_xlfn.RANK.EQ(AB17,AB$14:AB$63) -> 38
A18: =ROW() -> 18 | F18: 2025-09-23 | G18: 14712 | H18: 16384 | I18: 4.7 | J18: 686 | K18: 3.8 | L18: 563 | M18: =J18+L18 -> 1249 | N18: =($O$3*J18)+(L18*$O$4)+(G18*($O$5+$O$6)) -> 65031.6484 | O18: =N18*(1+$R$3) -> 67632.91434 | P18: =O18+(N18*$R$4) -> 68979.06946 | Q18: =P18+(G18*$R$5) -> 74142.98146 | R18: =Q18+(G18*$R$6) -> 76644.02146 | S18: =N18/G18 -> 4.420313241 | T18: =Q18/G18 -> 5.039626255 | U18: =_xlfn.RANK.EQ(G18,G$14:G$63) -> 5 | V18: =_xlfn.RANK.EQ(H18,H$14:H$63) -> 1 | W18: =_xlfn.RANK.EQ(M18,M$14:M$63) -> 2 | X18: =_xlfn.RANK.EQ(N18,N$14:N$63) -> 3 | Y18: =_xlfn.RANK.EQ(Q18,Q$14:Q$63) -> 3 | Z18: =_xlfn.RANK.EQ(R18,R$14:R$63) -> 3 | AA18: =H18*-$O$7 -> -33914.88 | AB18: =R18+AA18 -> 42729.14146 | AC18: =_xlfn.RANK.EQ(AB18,AB$14:AB$63) -> 3
A19: =ROW() -> 19 | F19: 2025-10-01 | G19: 14695 | H19: 14845 | I19: 3.9 | J19: 575 | K19: 3.7 | L19: 540 | M19: =J19+L19 -> 1115 | N19: =($O$3*J19)+(L19*$O$4)+(G19*($O$5+$O$6)) -> 57242.799 | O19: =N19*(1+$R$3) -> 59532.51096 | P19: =O19+(N19*$R$4) -> 60717.4369 | Q19: =P19+(G19*$R$5) -> 65875.3819 | R19: =Q19+(G19*$R$6) -> 68373.5319 | S19: =N19/G19 -> 3.895392923 | T19: =Q19/G19 -> 4.482843273 | U19: =_xlfn.RANK.EQ(G19,G$14:G$63) -> 6 | V19: =_xlfn.RANK.EQ(H19,H$14:H$63) -> 26 | W19: =_xlfn.RANK.EQ(M19,M$14:M$63) -> 35 | X19: =_xlfn.RANK.EQ(N19,N$14:N$63) -> 40 | Y19: =_xlfn.RANK.EQ(Q19,Q$14:Q$63) -> 38 | Z19: =_xlfn.RANK.EQ(R19,R$14:R$63) -> 36 | AA19: =H19*-$O$7 -> -30729.15 | AB19: =R19+AA19 -> 37644.3819 | AC19: =_xlfn.RANK.EQ(AB19,AB$14:AB$63) -> 37
A20: =ROW() -> 20 | F20: 2025-09-23 | G20: 14593 | H20: 16174 | I20: 4.7 | J20: 683 | K20: 3.7 | L20: 545 | M20: =J20+L20 -> 1228 | N20: =($O$3*J20)+(L20*$O$4)+(G20*($O$5+$O$6)) -> 64011.1526 | O20: =N20*(1+$R$3) -> 66571.5987 | P20: =O20+(N20*$R$4) -> 67896.62956 | Q20: =P20+(G20*$R$5) -> 73018.77256 | R20: =Q20+(G20*$R$6) -> 75499.58256 | S20: =N20/G20 -> 4.386428603 | T20: =Q20/G20 -> 5.003684819 | U20: =_xlfn.RANK.EQ(G20,G$14:G$63) -> 7 | V20: =_xlfn.RANK.EQ(H20,H$14:H$63) -> 6 | W20: =_xlfn.RANK.EQ(M20,M$14:M$63) -> 5 | X20: =_xlfn.RANK.EQ(N20,N$14:N$63) -> 5 | Y20: =_xlfn.RANK.EQ(Q20,Q$14:Q$63) -> 5 | Z20: =_xlfn.RANK.EQ(R20,R$14:R$63) -> 5 | AA20: =H20*-$O$7 -> -33480.18 | AB20: =R20+AA20 -> 42019.40256 | AC20: =_xlfn.RANK.EQ(AB20,AB$14:AB$63) -> 5
A21: =ROW() -> 21 | F21: 2025-09-23 | G21: 14527 | H21: 15501 | I21: 4.6 | J21: 661 | K21: 3.4 | L21: 494 | M21: =J21+L21 -> 1155 | N21: =($O$3*J21)+(L21*$O$4)+(G21*($O$5+$O$6)) -> 60243.9214 | O21: =N21*(1+$R$3) -> 62653.67826 | P21: =O21+(N21*$R$4) -> 63900.72743 | Q21: =P21+(G21*$R$5) -> 68999.70443 | R21: =Q21+(G21*$R$6) -> 71469.29443 | S21: =N21/G21 -> 4.147031142 | T21: =Q21/G21 -> 4.749755932 | U21: =_xlfn.RANK.EQ(G21,G$14:G$63) -> 8 | V21: =_xlfn.RANK.EQ(H21,H$14:H$63) -> 9 | W21: =_xlfn.RANK.EQ(M21,M$14:M$63) -> 13 | X21: =_xlfn.RANK.EQ(N21,N$14:N$63) -> 17 | Y21: =_xlfn.RANK.EQ(Q21,Q$14:Q$63) -> 13 | Z21: =_xlfn.RANK.EQ(R21,R$14:R$63) -> 12 | AA21: =H21*-$O$7 -> -32087.07 | AB21: =R21+AA21 -> 39382.22443 | AC21: =_xlfn.RANK.EQ(AB21,AB$14:AB$63) -> 20
A22: =ROW() -> 22 | F22: 2025-09-23 | G22: 14522 | H22: 15110 | I22: 4.2 | J22: 615 | K22: 3.6 | L22: 517 | M22: =J22+L22 -> 1132 | N22: =($O$3*J22)+(L22*$O$4)+(G22*($O$5+$O$6)) -> 58583.3304 | O22: =N22*(1+$R$3) -> 60926.66362 | P22: =O22+(N22*$R$4) -> 62139.33856 | Q22: =P22+(G22*$R$5) -> 67236.56056 | R22: =Q22+(G22*$R$6) -> 69705.30056 | S22: =N22/G22 -> 4.034108966 | T22: =Q22/G22 -> 4.62997938 | U22: =_xlfn.RANK.EQ(G22,G$14:G$63) -> 9 | V22: =_xlfn.RANK.EQ(H22,H$14:H$63) -> 12 | W22: =_xlfn.RANK.EQ(M22,M$14:M$63) -> 27 | X22: =_xlfn.RANK.EQ(N22,N$14:N$63) -> 31 | Y22: =_xlfn.RANK.EQ(Q22,Q$14:Q$63) -> 28 | Z22: =_xlfn.RANK.EQ(R22,R$14:R$63) -> 28 | AA22: =H22*-$O$7 -> -31277.7 | AB22: =R22+AA22 -> 38427.60056 | AC22: =_xlfn.RANK.EQ(AB22,AB$14:AB$63) -> 32
A23: =ROW() -> 23 | F23: 2025-09-23 | G23: 14477 | H23: 14776 | I23: 4.2 | J23: 605 | K23: 3.4 | L23: 490 | M23: =J23+L23 -> 1095 | N23: =($O$3*J23)+(L23*$O$4)+(G23*($O$5+$O$6)) -> 56690.4314 | O23: =N23*(1+$R$3) -> 58958.04866 | P23: =O23+(N23*$R$4) -> 60131.54059 | Q23: =P23+(G23*$R$5) -> 65212.96759 | R23: =Q23+(G23*$R$6) -> 67674.05759 | S23: =N23/G23 -> 3.915896346 | T23: =Q23/G23 -> 4.504591254 | U23: =_xlfn.RANK.EQ(G23,G$14:G$63) -> 10 | V23: =_xlfn.RANK.EQ(H23,H$14:H$63) -> 32 | W23: =_xlfn.RANK.EQ(M23,M$14:M$63) -> 41 | X23: =_xlfn.RANK.EQ(N23,N$14:N$63) -> 43 | Y23: =_xlfn.RANK.EQ(Q23,Q$14:Q$63) -> 43 | Z23: =_xlfn.RANK.EQ(R23,R$14:R$63) -> 41 | AA23: =H23*-$O$7 -> -30586.32 | AB23: =R23+AA23 -> 37087.73759 | AC23: =_xlfn.RANK.EQ(AB23,AB$14:AB$63) -> 43
A24: =ROW() -> 24 | F24: 2025-09-23 | G24: 14331 | H24: 16304 | I24: 4.6 | J24: 659 | K24: 4.2 | L24: 609 | M24: =J24+L24 -> 1268 | N24: =($O$3*J24)+(L24*$O$4)+(G24*($O$5+$O$6)) -> 65710.7642 | O24: =N24*(1+$R$3) -> 68339.19477 | P24: =O24+(N24*$R$4) -> 69699.40759 | Q24: =P24+(G24*$R$5) -> 74729.58859 | R24: =Q24+(G24*$R$6) -> 77165.85859 | S24: =N24/G24 -> 4.585218352 | T24: =Q24/G24 -> 5.214541106 | U24: =_xlfn.RANK.EQ(G24,G$14:G$63) -> 11 | V24: =_xlfn.RANK.EQ(H24,H$14:H$63) -> 3 | W24: =_xlfn.RANK.EQ(M24,M$14:M$63) -> 1 | X24: =_xlfn.RANK.EQ(N24,N$14:N$63) -> 1 | Y24: =_xlfn.RANK.EQ(Q24,Q$14:Q$63) -> 1 | Z24: =_xlfn.RANK.EQ(R24,R$14:R$63) -> 1 | AA24: =H24*-$O$7 -> -33749.28 | AB24: =R24+AA24 -> 43416.57859 | AC24: =_xlfn.RANK.EQ(AB24,AB$14:AB$63) -> 1
A25: =ROW() -> 25 | F25: 2025-09-23 | G25: 14276 | H25: 15098 | I25: 4.4 | J25: 630 | K25: 3.5 | L25: 498 | M25: =J25+L25 -> 1128 | N25: =($O$3*J25)+(L25*$O$4)+(G25*($O$5+$O$6)) -> 58628.0432 | O25: =N25*(1+$R$3) -> 60973.16493 | P25: =O25+(N25*$R$4) -> 62186.76542 | Q25: =P25+(G25*$R$5) -> 67197.64142 | R25: =Q25+(G25*$R$6) -> 69624.56142 | S25: =N25/G25 -> 4.106755618 | T25: =Q25/G25 -> 4.707035684 | U25: =_xlfn.RANK.EQ(G25,G$14:G$63) -> 12 | V25: =_xlfn.RANK.EQ(H25,H$14:H$63) -> 13 | W25: =_xlfn.RANK.EQ(M25,M$14:M$63) -> 33 | X25: =_xlfn.RANK.EQ(N25,N$14:N$63) -> 30 | Y25: =_xlfn.RANK.EQ(Q25,Q$14:Q$63) -> 29 | Z25: =_xlfn.RANK.EQ(R25,R$14:R$63) -> 29 | AA25: =H25*-$O$7 -> -31252.86 | AB25: =R25+AA25 -> 38371.70142 | AC25: =_xlfn.RANK.EQ(AB25,AB$14:AB$63) -> 33
A26: =ROW() -> 26 | F26: 2025-09-23 | G26: 14257 | H26: 14426 | I26: 4.1 | J26: 587 | K26: 3.4 | L26: 480 | M26: =J26+L26 -> 1067 | N26: =($O$3*J26)+(L26*$O$4)+(G26*($O$5+$O$6)) -> 55175.5674 | O26: =N26*(1+$R$3) -> 57382.5901 | P26: =O26+(N26*$R$4) -> 58524.72434 | Q26: =P26+(G26*$R$5) -> 63528.93134 | R26: =Q26+(G26*$R$6) -> 65952.62134 | S26: =N26/G26 -> 3.870068556 | T26: =Q26/G26 -> 4.455981717 | U26: =_xlfn.RANK.EQ(G26,G$14:G$63) -> 13 | V26: =_xlfn.RANK.EQ(H26,H$14:H$63) -> 43 | W26: =_xlfn.RANK.EQ(M26,M$14:M$63) -> 49 | X26: =_xlfn.RANK.EQ(N26,N$14:N$63) -> 48 | Y26: =_xlfn.RANK.EQ(Q26,Q$14:Q$63) -> 48 | Z26: =_xlfn.RANK.EQ(R26,R$14:R$63) -> 48 | AA26: =H26*-$O$7 -> -29861.82 | AB26: =R26+AA26 -> 36090.80134 | AC26: =_xlfn.RANK.EQ(AB26,AB$14:AB$63) -> 49
A27: =ROW() -> 27 | F27: 2025-09-23 | G27: 14237 | H27: 16246 | I27: 4.9 | J27: 694 | K27: 3.9 | L27: 548 | M27: =J27+L27 -> 1242 | N27: =($O$3*J27)+(L27*$O$4)+(G27*($O$5+$O$6)) -> 64900.6634 | O27: =N27*(1+$R$3) -> 67496.68994 | P27: =O27+(N27*$R$4) -> 68840.13367 | Q27: =P27+(G27*$R$5) -> 73837.32067 | R27: =Q27+(G27*$R$6) -> 76257.61067 | S27: =N27/G27 -> 4.558591234 | T27: =Q27/G27 -> 5.186297722 | U27: =_xlfn.RANK.EQ(G27,G$14:G$63) -> 14 | V27: =_xlfn.RANK.EQ(H27,H$14:H$63) -> 5 | W27: =_xlfn.RANK.EQ(M27,M$14:M$63) -> 4 | X27: =_xlfn.RANK.EQ(N27,N$14:N$63) -> 4 | Y27: =_xlfn.RANK.EQ(Q27,Q$14:Q$63) -> 4 | Z27: =_xlfn.RANK.EQ(R27,R$14:R$63) -> 4 | AA27: =H27*-$O$7 -> -33629.22 | AB27: =R27+AA27 -> 42628.39067 | AC27: =_xlfn.RANK.EQ(AB27,AB$14:AB$63) -> 4
A28: =ROW() -> 28 | F28: 2025-09-23 | G28: 14204 | H28: 14337 | I28: 4 | J28: 569 | K28: 3.5 | L28: 500 | M28: =J28+L28 -> 1069 | N28: =($O$3*J28)+(L28*$O$4)+(G28*($O$5+$O$6)) -> 55067.6928 | O28: =N28*(1+$R$3) -> 57270.40051 | P28: =O28+(N28*$R$4) -> 58410.30175 | Q28: =P28+(G28*$R$5) -> 63395.90575 | R28: =Q28+(G28*$R$6) -> 65810.58575 | S28: =N28/G28 -> 3.876914447 | T28: =Q28/G28 -> 4.463243154 | U28: =_xlfn.RANK.EQ(G28,G$14:G$63) -> 15 | V28: =_xlfn.RANK.EQ(H28,H$14:H$63) -> 47 | W28: =_xlfn.RANK.EQ(M28,M$14:M$63) -> 48 | X28: =_xlfn.RANK.EQ(N28,N$14:N$63) -> 49 | Y28: =_xlfn.RANK.EQ(Q28,Q$14:Q$63) -> 49 | Z28: =_xlfn.RANK.EQ(R28,R$14:R$63) -> 49 | AA28: =H28*-$O$7 -> -29677.59 | AB28: =R28+AA28 -> 36132.99575 | AC28: =_xlfn.RANK.EQ(AB28,AB$14:AB$63) -> 48
A29: =ROW() -> 29 | F29: 2025-10-01 | G29: 14199 | H29: 14985 | I29: 4.3 | J29: 606 | K29: 3.7 | L29: 525 | M29: =J29+L29 -> 1131 | N29: =($O$3*J29)+(L29*$O$4)+(G29*($O$5+$O$6)) -> 58501.7418 | O29: =N29*(1+$R$3) -> 60841.81147 | P29: =O29+(N29*$R$4) -> 62052.79753 | Q29: =P29+(G29*$R$5) -> 67036.64653 | R29: =Q29+(G29*$R$6) -> 69450.47653 | S29: =N29/G29 -> 4.120131122 | T29: =Q29/G29 -> 4.721223081 | U29: =_xlfn.RANK.EQ(G29,G$14:G$63) -> 16 | V29: =_xlfn.RANK.EQ(H29,H$14:H$63) -> 18 | W29: =_xlfn.RANK.EQ(M29,M$14:M$63) -> 28 | X29: =_xlfn.RANK.EQ(N29,N$14:N$63) -> 33 | Y29: =_xlfn.RANK.EQ(Q29,Q$14:Q$63) -> 32 | Z29: =_xlfn.RANK.EQ(R29,R$14:R$63) -> 30 | AA29: =H29*-$O$7 -> -31018.95 | AB29: =R29+AA29 -> 38431.52653 | AC29: =_xlfn.RANK.EQ(AB29,AB$14:AB$63) -> 31
A30: =ROW() -> 30 | F30: 2025-09-23 | G30: 14125 | H30: 16380 | I30: 5.1 | J30: 722 | K30: 3.7 | L30: 524 | M30: =J30+L30 -> 1246 | N30: =($O$3*J30)+(L30*$O$4)+(G30*($O$5+$O$6)) -> 65456.225 | O30: =N30*(1+$R$3) -> 68074.474 | P30: =O30+(N30*$R$4) -> 69429.41786 | Q30: =P30+(G30*$R$5) -> 74387.29286 | R30: =Q30+(G30*$R$6) -> 76788.54286 | S30: =N30/G30 -> 4.634069027 | T30: =Q30/G30 -> 5.266357016 | U30: =_xlfn.RANK.EQ(G30,G$14:G$63) -> 17 | V30: =_xlfn.RANK.EQ(H30,H$14:H$63) -> 2 | W30: =_xlfn.RANK.EQ(M30,M$14:M$63) -> 3 | X30: =_xlfn.RANK.EQ(N30,N$14:N$63) -> 2 | Y30: =_xlfn.RANK.EQ(Q30,Q$14:Q$63) -> 2 | Z30: =_xlfn.RANK.EQ(R30,R$14:R$63) -> 2 | AA30: =H30*-$O$7 -> -33906.6 | AB30: =R30+AA30 -> 42881.94286 | AC30: =_xlfn.RANK.EQ(AB30,AB$14:AB$63) -> 2
A31: =ROW() -> 31 | F31: 2025-09-23 | G31: 14059 | H31: 15137 | I31: 4.6 | J31: 641 | K31: 3.5 | L31: 493 | M31: =J31+L31 -> 1134 | N31: =($O$3*J31)+(L31*$O$4)+(G31*($O$5+$O$6)) -> 59099.8138 | O31: =N31*(1+$R$3) -> 61463.80635 | P31: =O31+(N31*$R$4) -> 62687.1725 | Q31: =P31+(G31*$R$5) -> 67621.8815 | R31: =Q31+(G31*$R$6) -> 70011.9115 | S31: =N31/G31 -> 4.20369968 | T31: =Q31/G31 -> 4.80986425 | U31: =_xlfn.RANK.EQ(G31,G$14:G$63) -> 18 | V31: =_xlfn.RANK.EQ(H31,H$14:H$63) -> 11 | W31: =_xlfn.RANK.EQ(M31,M$14:M$63) -> 25 | X31: =_xlfn.RANK.EQ(N31,N$14:N$63) -> 29 | Y31: =_xlfn.RANK.EQ(Q31,Q$14:Q$63) -> 26 | Z31: =_xlfn.RANK.EQ(R31,R$14:R$63) -> 26 | AA31: =H31*-$O$7 -> -31333.59 | AB31: =R31+AA31 -> 38678.3215 | AC31: =_xlfn.RANK.EQ(AB31,AB$14:AB$63) -> 29
A32: =ROW() -> 32 | F32: 2025-09-23 | G32: 14024 | H32: 14298 | I32: 4.1 | J32: 581 | K32: 3.4 | L32: 480 | M32: =J32+L32 -> 1061 | N32: =($O$3*J32)+(L32*$O$4)+(G32*($O$5+$O$6)) -> 54868.2568 | O32: =N32*(1+$R$3) -> 57062.98707 | P32: =O32+(N32*$R$4) -> 58198.75999 | Q32: =P32+(G32*$R$5) -> 63121.18399 | R32: =Q32+(G32*$R$6) -> 65505.26399 | S32: =N32/G32 -> 3.912454136 | T32: =Q32/G32 -> 4.500940102 | U32: =_xlfn.RANK.EQ(G32,G$14:G$63) -> 19 | V32: =_xlfn.RANK.EQ(H32,H$14:H$63) -> 50 | W32: =_xlfn.RANK.EQ(M32,M$14:M$63) -> 50 | X32: =_xlfn.RANK.EQ(N32,N$14:N$63) -> 50 | Y32: =_xlfn.RANK.EQ(Q32,Q$14:Q$63) -> 50 | Z32: =_xlfn.RANK.EQ(R32,R$14:R$63) -> 50 | AA32: =H32*-$O$7 -> -29596.86 | AB32: =R32+AA32 -> 35908.40399 | AC32: =_xlfn.RANK.EQ(AB32,AB$14:AB$63) -> 50
A33: =ROW() -> 33 | F33: 2025-09-23 | G33: 13855 | H33: 14802 | I33: 4.6 | J33: 631 | K33: 3.4 | L33: 472 | M33: =J33+L33 -> 1103 | N33: =($O$3*J33)+(L33*$O$4)+(G33*($O$5+$O$6)) -> 57532.911 | O33: =N33*(1+$R$3) -> 59834.22744 | P33: =O33+(N33*$R$4) -> 61025.1587 | Q33: =P33+(G33*$R$5) -> 65888.2637 | R33: =Q33+(G33*$R$6) -> 68243.6137 | S33: =N33/G33 -> 4.152501696 | T33: =Q33/G33 -> 4.755558549 | U33: =_xlfn.RANK.EQ(G33,G$14:G$63) -> 20 | V33: =_xlfn.RANK.EQ(H33,H$14:H$63) -> 31 | W33: =_xlfn.RANK.EQ(M33,M$14:M$63) -> 40 | X33: =_xlfn.RANK.EQ(N33,N$14:N$63) -> 37 | Y33: =_xlfn.RANK.EQ(Q33,Q$14:Q$63) -> 36 | Z33: =_xlfn.RANK.EQ(R33,R$14:R$63) -> 37 | AA33: =H33*-$O$7 -> -30640.14 | AB33: =R33+AA33 -> 37603.4737 | AC33: =_xlfn.RANK.EQ(AB33,AB$14:AB$63) -> 40
A34: =ROW() -> 34 | F34: 2025-10-01 | G34: 13728 | H34: 14573 | I34: 4.2 | J34: 581 | K34: 3.8 | L34: 526 | M34: =J34+L34 -> 1107 | N34: =($O$3*J34)+(L34*$O$4)+(G34*($O$5+$O$6)) -> 57153.6096 | O34: =N34*(1+$R$3) -> 59439.75398 | P34: =O34+(N34*$R$4) -> 60622.8337 | Q34: =P34+(G34*$R$5) -> 65441.3617 | R34: =Q34+(G34*$R$6) -> 67775.1217 | S34: =N34/G34 -> 4.163287413 | T34: =Q34/G34 -> 4.766998959 | U34: =_xlfn.RANK.EQ(G34,G$14:G$63) -> 21 | V34: =_xlfn.RANK.EQ(H34,H$14:H$63) -> 39 | W34: =_xlfn.RANK.EQ(M34,M$14:M$63) -> 38 | X34: =_xlfn.RANK.EQ(N34,N$14:N$63) -> 42 | Y34: =_xlfn.RANK.EQ(Q34,Q$14:Q$63) -> 40 | Z34: =_xlfn.RANK.EQ(R34,R$14:R$63) -> 40 | AA34: =H34*-$O$7 -> -30166.11 | AB34: =R34+AA34 -> 37609.0117 | AC34: =_xlfn.RANK.EQ(AB34,AB$14:AB$63) -> 39
A35: =ROW() -> 35 | F35: 2025-10-01 | G35: 13611 | H35: 14972 | I35: 4.4 | J35: 605 | K35: 4 | L35: 545 | M35: =J35+L35 -> 1150 | N35: =($O$3*J35)+(L35*$O$4)+(G35*($O$5+$O$6)) -> 59541.6202 | O35: =N35*(1+$R$3) -> 61923.28501 | P35: =O35+(N35*$R$4) -> 63155.79655 | Q35: =P35+(G35*$R$5) -> 67933.25755 | R35: =Q35+(G35*$R$6) -> 70247.12755 | S35: =N35/G35 -> 4.374522092 | T35: =Q35/G35 -> 4.991055583 | U35: =_xlfn.RANK.EQ(G35,G$14:G$63) -> 22 | V35: =_xlfn.RANK.EQ(H35,H$14:H$63) -> 19 | W35: =_xlfn.RANK.EQ(M35,M$14:M$63) -> 17 | X35: =_xlfn.RANK.EQ(N35,N$14:N$63) -> 26 | Y35: =_xlfn.RANK.EQ(Q35,Q$14:Q$63) -> 24 | Z35: =_xlfn.RANK.EQ(R35,R$14:R$63) -> 20 | AA35: =H35*-$O$7 -> -30992.04 | AB35: =R35+AA35 -> 39255.08755 | AC35: =_xlfn.RANK.EQ(AB35,AB$14:AB$63) -> 23
A36: =ROW() -> 36 | F36: 2025-10-01 | G36: 13494 | H36: 14986 | I36: 4.6 | J36: 617 | K36: 3.9 | L36: 531 | M36: =J36+L36 -> 1148 | N36: =($O$3*J36)+(L36*$O$4)+(G36*($O$5+$O$6)) -> 59616.7208 | O36: =N36*(1+$R$3) -> 62001.38963 | P36: =O36+(N36*$R$4) -> 63235.45575 | Q36: =P36+(G36*$R$5) -> 67971.84975 | R36: =Q36+(G36*$R$6) -> 70265.82975 | S36: =N36/G36 -> 4.418016956 | T36: =Q36/G36 -> 5.037190585 | U36: =_xlfn.RANK.EQ(G36,G$14:G$63) -> 23 | V36: =_xlfn.RANK.EQ(H36,H$14:H$63) -> 17 | W36: =_xlfn.RANK.EQ(M36,M$14:M$63) -> 18 | X36: =_xlfn.RANK.EQ(N36,N$14:N$63) -> 24 | Y36: =_xlfn.RANK.EQ(Q36,Q$14:Q$63) -> 21 | Z36: =_xlfn.RANK.EQ(R36,R$14:R$63) -> 19 | AA36: =H36*-$O$7 -> -31021.02 | AB36: =R36+AA36 -> 39244.80975 | AC36: =_xlfn.RANK.EQ(AB36,AB$14:AB$63) -> 24
A37: =ROW() -> 37 | F37: 2025-10-01 | G37: 13460 | H37: 14600 | I37: 4.4 | J37: 590 | K37: 3.9 | L37: 524 | M37: =J37+L37 -> 1114 | N37: =($O$3*J37)+(L37*$O$4)+(G37*($O$5+$O$6)) -> 57661.332 | O37: =N37*(1+$R$3) -> 59967.78528 | P37: =O37+(N37*$R$4) -> 61161.37485 | Q37: =P37+(G37*$R$5) -> 65885.83485 | R37: =Q37+(G37*$R$6) -> 68174.03485 | S37: =N37/G37 -> 4.283902823 | T37: =Q37/G37 -> 4.894935725 | U37: =_xlfn.RANK.EQ(G37,G$14:G$63) -> 24 | V37: =_xlfn.RANK.EQ(H37,H$14:H$63) -> 37 | W37: =_xlfn.RANK.EQ(M37,M$14:M$63) -> 36 | X37: =_xlfn.RANK.EQ(N37,N$14:N$63) -> 35 | Y37: =_xlfn.RANK.EQ(Q37,Q$14:Q$63) -> 37 | Z37: =_xlfn.RANK.EQ(R37,R$14:R$63) -> 38 | AA37: =H37*-$O$7 -> -30222 | AB37: =R37+AA37 -> 37952.03485 | AC37: =_xlfn.RANK.EQ(AB37,AB$14:AB$63) -> 35
A38: =ROW() -> 38 | F38: 2025-09-23 | G38: 13442 | H38: 14330 | I38: 4.4 | J38: 590 | K38: 3.6 | L38: 489 | M38: =J38+L38 -> 1079 | N38: =($O$3*J38)+(L38*$O$4)+(G38*($O$5+$O$6)) -> 55978.8544 | O38: =N38*(1+$R$3) -> 58218.00858 | P38: =O38+(N38*$R$4) -> 59376.77086 | Q38: =P38+(G38*$R$5) -> 64094.91286 | R38: =Q38+(G38*$R$6) -> 66380.05286 | S38: =N38/G38 -> 4.16447362 | T38: =Q38/G38 -> 4.768257169 | U38: =_xlfn.RANK.EQ(G38,G$14:G$63) -> 25 | V38: =_xlfn.RANK.EQ(H38,H$14:H$63) -> 48 | W38: =_xlfn.RANK.EQ(M38,M$14:M$63) -> 46 | X38: =_xlfn.RANK.EQ(N38,N$14:N$63) -> 46 | Y38: =_xlfn.RANK.EQ(Q38,Q$14:Q$63) -> 47 | Z38: =_xlfn.RANK.EQ(R38,R$14:R$63) -> 47 | AA38: =H38*-$O$7 -> -29663.1 | AB38: =R38+AA38 -> 36716.95286 | AC38: =_xlfn.RANK.EQ(AB38,AB$14:AB$63) -> 46
A39: =ROW() -> 39 | F39: 2025-09-23 | G39: 13265 | H39: 15202 | I39: 5 | J39: 661 | K39: 3.7 | L39: 497 | M39: =J39+L39 -> 1158 | N39: =($O$3*J39)+(L39*$O$4)+(G39*($O$5+$O$6)) -> 60681.023 | O39: =N39*(1+$R$3) -> 63108.26392 | P39: =O39+(N39*$R$4) -> 64364.3611 | Q39: =P39+(G39*$R$5) -> 69020.3761 | R39: =Q39+(G39*$R$6) -> 71275.4261 | S39: =N39/G39 -> 4.574521146 | T39: =Q39/G39 -> 5.203194579 | U39: =_xlfn.RANK.EQ(G39,G$14:G$63) -> 26 | V39: =_xlfn.RANK.EQ(H39,H$14:H$63) -> 10 | W39: =_xlfn.RANK.EQ(M39,M$14:M$63) -> 12 | X39: =_xlfn.RANK.EQ(N39,N$14:N$63) -> 14 | Y39: =_xlfn.RANK.EQ(Q39,Q$14:Q$63) -> 12 | Z39: =_xlfn.RANK.EQ(R39,R$14:R$63) -> 13 | AA39: =H39*-$O$7 -> -31468.14 | AB39: =R39+AA39 -> 39807.2861 | AC39: =_xlfn.RANK.EQ(AB39,AB$14:AB$63) -> 16
A40: =ROW() -> 40 | F40: 2025-09-23 | G40: 13253 | H40: 14350 | I40: 4.5 | J40: 601 | K40: 3.6 | L40: 481 | M40: =J40+L40 -> 1082 | N40: =($O$3*J40)+(L40*$O$4)+(G40*($O$5+$O$6)) -> 56299.5646 | O40: =N40*(1+$R$3) -> 58551.54718 | P40: =O40+(N40*$R$4) -> 59716.94817 | Q40: =P40+(G40*$R$5) -> 64368.75117 | R40: =Q40+(G40*$R$6) -> 66621.76117 | S40: =N40/G40 -> 4.248061918 | T40: =Q40/G40 -> 4.856919276 | U40: =_xlfn.RANK.EQ(G40,G$14:G$63) -> 27 | V40: =_xlfn.RANK.EQ(H40,H$14:H$63) -> 46 | W40: =_xlfn.RANK.EQ(M40,M$14:M$63) -> 45 | X40: =_xlfn.RANK.EQ(N40,N$14:N$63) -> 45 | Y40: =_xlfn.RANK.EQ(Q40,Q$14:Q$63) -> 44 | Z40: =_xlfn.RANK.EQ(R40,R$14:R$63) -> 45 | AA40: =H40*-$O$7 -> -29704.5 | AB40: =R40+AA40 -> 36917.26117 | AC40: =_xlfn.RANK.EQ(AB40,AB$14:AB$63) -> 44
A41: =ROW() -> 41 | F41: 2025-09-23 | G41: 13156 | H41: 15098 | I41: 4.7 | J41: 614 | K41: 4.3 | L41: 561 | M41: =J41+L41 -> 1175 | N41: =($O$3*J41)+(L41*$O$4)+(G41*($O$5+$O$6)) -> 60960.1092 | O41: =N41*(1+$R$3) -> 63398.51357 | P41: =O41+(N41*$R$4) -> 64660.38783 | Q41: =P41+(G41*$R$5) -> 69278.14383 | R41: =Q41+(G41*$R$6) -> 71514.66383 | S41: =N41/G41 -> 4.633635543 | T41: =Q41/G41 -> 5.26589722 | U41: =_xlfn.RANK.EQ(G41,G$14:G$63) -> 28 | V41: =_xlfn.RANK.EQ(H41,H$14:H$63) -> 13 | W41: =_xlfn.RANK.EQ(M41,M$14:M$63) -> 11 | X41: =_xlfn.RANK.EQ(N41,N$14:N$63) -> 11 | Y41: =_xlfn.RANK.EQ(Q41,Q$14:Q$63) -> 11 | Z41: =_xlfn.RANK.EQ(R41,R$14:R$63) -> 11 | AA41: =H41*-$O$7 -> -31252.86 | AB41: =R41+AA41 -> 40261.80383 | AC41: =_xlfn.RANK.EQ(AB41,AB$14:AB$63) -> 11
A42: =ROW() -> 42 | F42: 2025-10-01 | G42: 13113 | H42: 14598 | I42: 4.4 | J42: 582 | K42: 4.2 | L42: 548 | M42: =J42+L42 -> 1130 | N42: =($O$3*J42)+(L42*$O$4)+(G42*($O$5+$O$6)) -> 58416.5666 | O42: =N42*(1+$R$3) -> 60753.22926 | P42: =O42+(N42*$R$4) -> 61962.45219 | Q42: =P42+(G42*$R$5) -> 66565.11519 | R42: =Q42+(G42*$R$6) -> 68794.32519 | S42: =N42/G42 -> 4.454859041 | T42: =Q42/G42 -> 5.076268984 | U42: =_xlfn.RANK.EQ(G42,G$14:G$63) -> 29 | V42: =_xlfn.RANK.EQ(H42,H$14:H$63) -> 38 | W42: =_xlfn.RANK.EQ(M42,M$14:M$63) -> 32 | X42: =_xlfn.RANK.EQ(N42,N$14:N$63) -> 34 | Y42: =_xlfn.RANK.EQ(Q42,Q$14:Q$63) -> 34 | Z42: =_xlfn.RANK.EQ(R42,R$14:R$63) -> 34 | AA42: =H42*-$O$7 -> -30217.86 | AB42: =R42+AA42 -> 38576.46519 | AC42: =_xlfn.RANK.EQ(AB42,AB$14:AB$63) -> 30
A43: =ROW() -> 43 | F43: 2025-10-01 | G43: 13035 | H43: 14514 | I43: 4.7 | J43: 608 | K43: 3.8 | L43: 498 | M43: =J43+L43 -> 1106 | N43: =($O$3*J43)+(L43*$O$4)+(G43*($O$5+$O$6)) -> 57590.867 | O43: =N43*(1+$R$3) -> 59894.50168 | P43: =O43+(N43*$R$4) -> 61086.63263 | Q43: =P43+(G43*$R$5) -> 65661.91763 | R43: =Q43+(G43*$R$6) -> 67877.86763 | S43: =N43/G43 -> 4.418171615 | T43: =Q43/G43 -> 5.037354632 | U43: =_xlfn.RANK.EQ(G43,G$14:G$63) -> 30 | V43: =_xlfn.RANK.EQ(H43,H$14:H$63) -> 42 | W43: =_xlfn.RANK.EQ(M43,M$14:M$63) -> 39 | X43: =_xlfn.RANK.EQ(N43,N$14:N$63) -> 36 | Y43: =_xlfn.RANK.EQ(Q43,Q$14:Q$63) -> 39 | Z43: =_xlfn.RANK.EQ(R43,R$14:R$63) -> 39 | AA43: =H43*-$O$7 -> -30043.98 | AB43: =R43+AA43 -> 37833.88763 | AC43: =_xlfn.RANK.EQ(AB43,AB$14:AB$63) -> 36
A44: =ROW() -> 44 | F44: 2025-09-23 | G44: 12972 | H44: 14761 | I44: 5 | J44: 653 | K44: 3.6 | L44: 461 | M44: =J44+L44 -> 1114 | N44: =($O$3*J44)+(L44*$O$4)+(G44*($O$5+$O$6)) -> 58532.3404 | O44: =N44*(1+$R$3) -> 60873.63402 | P44: =O44+(N44*$R$4) -> 62085.25346 | Q44: =P44+(G44*$R$5) -> 66638.42546 | R44: =Q44+(G44*$R$6) -> 68843.66546 | S44: =N44/G44 -> 4.512206321 | T44: =Q44/G44 -> 5.137097245 | U44: =_xlfn.RANK.EQ(G44,G$14:G$63) -> 31 | V44: =_xlfn.RANK.EQ(H44,H$14:H$63) -> 33 | W44: =_xlfn.RANK.EQ(M44,M$14:M$63) -> 36 | X44: =_xlfn.RANK.EQ(N44,N$14:N$63) -> 32 | Y44: =_xlfn.RANK.EQ(Q44,Q$14:Q$63) -> 33 | Z44: =_xlfn.RANK.EQ(R44,R$14:R$63) -> 33 | AA44: =H44*-$O$7 -> -30555.27 | AB44: =R44+AA44 -> 38288.39546 | AC44: =_xlfn.RANK.EQ(AB44,AB$14:AB$63) -> 34
A45: =ROW() -> 45 | F45: 2025-09-23 | G45: 12949 | H45: 14303 | I45: 4.7 | J45: 615 | K45: 3.6 | L45: 463 | M45: =J45+L45 -> 1078 | N45: =($O$3*J45)+(L45*$O$4)+(G45*($O$5+$O$6)) -> 56345.6918 | O45: =N45*(1+$R$3) -> 58599.51947 | P45: =O45+(N45*$R$4) -> 59765.87529 | Q45: =P45+(G45*$R$5) -> 64310.97429 | R45: =Q45+(G45*$R$6) -> 66512.30429 | S45: =N45/G45 -> 4.351354684 | T45: =Q45/G45 -> 4.966481913 | U45: =_xlfn.RANK.EQ(G45,G$14:G$63) -> 32 | V45: =_xlfn.RANK.EQ(H45,H$14:H$63) -> 49 | W45: =_xlfn.RANK.EQ(M45,M$14:M$63) -> 47 | X45: =_xlfn.RANK.EQ(N45,N$14:N$63) -> 44 | Y45: =_xlfn.RANK.EQ(Q45,Q$14:Q$63) -> 45 | Z45: =_xlfn.RANK.EQ(R45,R$14:R$63) -> 46 | AA45: =H45*-$O$7 -> -29607.21 | AB45: =R45+AA45 -> 36905.09429 | AC45: =_xlfn.RANK.EQ(AB45,AB$14:AB$63) -> 45
A46: =ROW() -> 46 | F46: 2025-10-01 | G46: 12887 | H46: 14962 | I46: 5.2 | J46: 668 | K46: 3.6 | L46: 466 | M46: =J46+L46 -> 1134 | N46: =($O$3*J46)+(L46*$O$4)+(G46*($O$5+$O$6)) -> 59696.2934 | O46: =N46*(1+$R$3) -> 62084.14514 | P46: =O46+(N46*$R$4) -> 63319.85841 | Q46: =P46+(G46*$R$5) -> 67843.19541 | R46: =Q46+(G46*$R$6) -> 70033.98541 | S46: =N46/G46 -> 4.63228784 | T46: =Q46/G46 -> 5.264467712 | U46: =_xlfn.RANK.EQ(G46,G$14:G$63) -> 33 | V46: =_xlfn.RANK.EQ(H46,H$14:H$63) -> 20 | W46: =_xlfn.RANK.EQ(M46,M$14:M$63) -> 25 | X46: =_xlfn.RANK.EQ(N46,N$14:N$63) -> 23 | Y46: =_xlfn.RANK.EQ(Q46,Q$14:Q$63) -> 25 | Z46: =_xlfn.RANK.EQ(R46,R$14:R$63) -> 25 | AA46: =H46*-$O$7 -> -30971.34 | AB46: =R46+AA46 -> 39062.64541 | AC46: =_xlfn.RANK.EQ(AB46,AB$14:AB$63) -> 25
A47: =ROW() -> 47 | F47: 2025-10-01 | G47: 12821 | H47: 14907 | I47: 4.9 | J47: 626 | K47: 4.1 | L47: 528 | M47: =J47+L47 -> 1154 | N47: =($O$3*J47)+(L47*$O$4)+(G47*($O$5+$O$6)) -> 60170.1322 | O47: =N47*(1+$R$3) -> 62576.93749 | P47: =O47+(N47*$R$4) -> 63822.45922 | Q47: =P47+(G47*$R$5) -> 68322.63022 | R47: =Q47+(G47*$R$6) -> 70502.20022 | S47: =N47/G47 -> 4.693091974 | T47: =Q47/G47 -> 5.328962657 | U47: =_xlfn.RANK.EQ(G47,G$14:G$63) -> 34 | V47: =_xlfn.RANK.EQ(H47,H$14:H$63) -> 21 | W47: =_xlfn.RANK.EQ(M47,M$14:M$63) -> 14 | X47: =_xlfn.RANK.EQ(N47,N$14:N$63) -> 18 | Y47: =_xlfn.RANK.EQ(Q47,Q$14:Q$63) -> 16 | Z47: =_xlfn.RANK.EQ(R47,R$14:R$63) -> 16 | AA47: =H47*-$O$7 -> -30857.49 | AB47: =R47+AA47 -> 39644.71022 | AC47: =_xlfn.RANK.EQ(AB47,AB$14:AB$63) -> 17
A48: =ROW() -> 48 | F48: 2025-09-23 | G48: 12695 | H48: 14869 | I48: 5.2 | J48: 664 | K48: 3.7 | L48: 467 | M48: =J48+L48 -> 1131 | N48: =($O$3*J48)+(L48*$O$4)+(G48*($O$5+$O$6)) -> 59548.109 | O48: =N48*(1+$R$3) -> 61930.03336 | P48: =O48+(N48*$R$4) -> 63162.67922 | Q48: =P48+(G48*$R$5) -> 67618.62422 | R48: =Q48+(G48*$R$6) -> 69776.77422 | S48: =N48/G48 -> 4.690674202 | T48: =Q48/G48 -> 5.326398127 | U48: =_xlfn.RANK.EQ(G48,G$14:G$63) -> 35 | V48: =_xlfn.RANK.EQ(H48,H$14:H$63) -> 23 | W48: =_xlfn.RANK.EQ(M48,M$14:M$63) -> 28 | X48: =_xlfn.RANK.EQ(N48,N$14:N$63) -> 25 | Y48: =_xlfn.RANK.EQ(Q48,Q$14:Q$63) -> 27 | Z48: =_xlfn.RANK.EQ(R48,R$14:R$63) -> 27 | AA48: =H48*-$O$7 -> -30778.83 | AB48: =R48+AA48 -> 38997.94422 | AC48: =_xlfn.RANK.EQ(AB48,AB$14:AB$63) -> 28
A49: =ROW() -> 49 | F49: 2025-09-23 | G49: 12592 | H49: 15559 | I49: 5.5 | J49: 694 | K49: 4.1 | L49: 511 | M49: =J49+L49 -> 1205 | N49: =($O$3*J49)+(L49*$O$4)+(G49*($O$5+$O$6)) -> 63498.9444 | O49: =N49*(1+$R$3) -> 66038.90218 | P49: =O49+(N49*$R$4) -> 67353.33033 | Q49: =P49+(G49*$R$5) -> 71773.12233 | R49: =Q49+(G49*$R$6) -> 73913.76233 | S49: =N49/G49 -> 5.04280054 | T49: =Q49/G49 -> 5.699898533 | U49: =_xlfn.RANK.EQ(G49,G$14:G$63) -> 36 | V49: =_xlfn.RANK.EQ(H49,H$14:H$63) -> 8 | W49: =_xlfn.RANK.EQ(M49,M$14:M$63) -> 8 | X49: =_xlfn.RANK.EQ(N49,N$14:N$63) -> 6 | Y49: =_xlfn.RANK.EQ(Q49,Q$14:Q$63) -> 8 | Z49: =_xlfn.RANK.EQ(R49,R$14:R$63) -> 8 | AA49: =H49*-$O$7 -> -32207.13 | AB49: =R49+AA49 -> 41706.63233 | AC49: =_xlfn.RANK.EQ(AB49,AB$14:AB$63) -> 6
A50: =ROW() -> 50 | F50: 2025-09-23 | G50: 12566 | H50: 14405 | I50: 5 | J50: 634 | K50: 3.7 | L50: 459 | M50: =J50+L50 -> 1093 | N50: =($O$3*J50)+(L50*$O$4)+(G50*($O$5+$O$6)) -> 57385.8912 | O50: =N50*(1+$R$3) -> 59681.32685 | P50: =O50+(N50*$R$4) -> 60869.2148 | Q50: =P50+(G50*$R$5) -> 65279.8808 | R50: =Q50+(G50*$R$6) -> 67416.1008 | S50: =N50/G50 -> 4.566758809 | T50: =Q50/G50 -> 5.194961069 | U50: =_xlfn.RANK.EQ(G50,G$14:G$63) -> 37 | V50: =_xlfn.RANK.EQ(H50,H$14:H$63) -> 44 | W50: =_xlfn.RANK.EQ(M50,M$14:M$63) -> 42 | X50: =_xlfn.RANK.EQ(N50,N$14:N$63) -> 38 | Y50: =_xlfn.RANK.EQ(Q50,Q$14:Q$63) -> 41 | Z50: =_xlfn.RANK.EQ(R50,R$14:R$63) -> 42 | AA50: =H50*-$O$7 -> -29818.35 | AB50: =R50+AA50 -> 37597.7508 | AC50: =_xlfn.RANK.EQ(AB50,AB$14:AB$63) -> 41
A51: =ROW() -> 51 | F51: 2025-09-23 | G51: 12566 | H51: 14405 | I51: 5 | J51: 634 | K51: 3.7 | L51: 459 | M51: =J51+L51 -> 1093 | N51: =($O$3*J51)+(L51*$O$4)+(G51*($O$5+$O$6)) -> 57385.8912 | O51: =N51*(1+$R$3) -> 59681.32685 | P51: =O51+(N51*$R$4) -> 60869.2148 | Q51: =P51+(G51*$R$5) -> 65279.8808 | R51: =Q51+(G51*$R$6) -> 67416.1008 | S51: =N51/G51 -> 4.566758809 | T51: =Q51/G51 -> 5.194961069 | U51: =_xlfn.RANK.EQ(G51,G$14:G$63) -> 37 | V51: =_xlfn.RANK.EQ(H51,H$14:H$63) -> 44 | W51: =_xlfn.RANK.EQ(M51,M$14:M$63) -> 42 | X51: =_xlfn.RANK.EQ(N51,N$14:N$63) -> 38 | Y51: =_xlfn.RANK.EQ(Q51,Q$14:Q$63) -> 41 | Z51: =_xlfn.RANK.EQ(R51,R$14:R$63) -> 42 | AA51: =H51*-$O$7 -> -29818.35 | AB51: =R51+AA51 -> 37597.7508 | AC51: =_xlfn.RANK.EQ(AB51,AB$14:AB$63) -> 41
A52: =ROW() -> 52 | F52: 2025-10-01 | G52: 12509 | H52: 14865 | I52: 5.2 | J52: 646 | K52: 4 | L52: 501 | M52: =J52+L52 -> 1147 | N52: =($O$3*J52)+(L52*$O$4)+(G52*($O$5+$O$6)) -> 60145.7238 | O52: =N52*(1+$R$3) -> 62551.55275 | P52: =O52+(N52*$R$4) -> 63796.56923 | Q52: =P52+(G52*$R$5) -> 68187.22823 | R52: =Q52+(G52*$R$6) -> 70313.75823 | S52: =N52/G52 -> 4.808196003 | T52: =Q52/G52 -> 5.4510535 | U52: =_xlfn.RANK.EQ(G52,G$14:G$63) -> 39 | V52: =_xlfn.RANK.EQ(H52,H$14:H$63) -> 24 | W52: =_xlfn.RANK.EQ(M52,M$14:M$63) -> 19 | X52: =_xlfn.RANK.EQ(N52,N$14:N$63) -> 19 | Y52: =_xlfn.RANK.EQ(Q52,Q$14:Q$63) -> 19 | Z52: =_xlfn.RANK.EQ(R52,R$14:R$63) -> 17 | AA52: =H52*-$O$7 -> -30770.55 | AB52: =R52+AA52 -> 39543.20823 | AC52: =_xlfn.RANK.EQ(AB52,AB$14:AB$63) -> 18
A53: =ROW() -> 53 | F53: 2025-10-01 | G53: 12509 | H53: 14865 | I53: 5.2 | J53: 646 | K53: 4 | L53: 501 | M53: =J53+L53 -> 1147 | N53: =($O$3*J53)+(L53*$O$4)+(G53*($O$5+$O$6)) -> 60145.7238 | O53: =N53*(1+$R$3) -> 62551.55275 | P53: =O53+(N53*$R$4) -> 63796.56923 | Q53: =P53+(G53*$R$5) -> 68187.22823 | R53: =Q53+(G53*$R$6) -> 70313.75823 | S53: =N53/G53 -> 4.808196003 | T53: =Q53/G53 -> 5.4510535 | U53: =_xlfn.RANK.EQ(G53,G$14:G$63) -> 39 | V53: =_xlfn.RANK.EQ(H53,H$14:H$63) -> 24 | W53: =_xlfn.RANK.EQ(M53,M$14:M$63) -> 19 | X53: =_xlfn.RANK.EQ(N53,N$14:N$63) -> 19 | Y53: =_xlfn.RANK.EQ(Q53,Q$14:Q$63) -> 19 | Z53: =_xlfn.RANK.EQ(R53,R$14:R$63) -> 17 | AA53: =H53*-$O$7 -> -30770.55 | AB53: =R53+AA53 -> 39543.20823 | AC53: =_xlfn.RANK.EQ(AB53,AB$14:AB$63) -> 18
A54: =ROW() -> 54 | F54: 2025-09-23 | G54: 12227 | H54: 14816 | I54: 5.5 | J54: 667 | K54: 3.9 | L54: 471 | M54: =J54+L54 -> 1138 | N54: =($O$3*J54)+(L54*$O$4)+(G54*($O$5+$O$6)) -> 60030.0114 | O54: =N54*(1+$R$3) -> 62431.21186 | P54: =O54+(N54*$R$4) -> 63673.83309 | Q54: =P54+(G54*$R$5) -> 67965.51009 | R54: =Q54+(G54*$R$6) -> 70044.10009 | S54: =N54/G54 -> 4.909627169 | T54: =Q54/G54 -> 5.558641539 | U54: =_xlfn.RANK.EQ(G54,G$14:G$63) -> 41 | V54: =_xlfn.RANK.EQ(H54,H$14:H$63) -> 29 | W54: =_xlfn.RANK.EQ(M54,M$14:M$63) -> 23 | X54: =_xlfn.RANK.EQ(N54,N$14:N$63) -> 21 | Y54: =_xlfn.RANK.EQ(Q54,Q$14:Q$63) -> 22 | Z54: =_xlfn.RANK.EQ(R54,R$14:R$63) -> 23 | AA54: =H54*-$O$7 -> -30669.12 | AB54: =R54+AA54 -> 39374.98009 | AC54: =_xlfn.RANK.EQ(AB54,AB$14:AB$63) -> 21
A55: =ROW() -> 55 | F55: 2025-09-23 | G55: 12227 | H55: 14816 | I55: 5.5 | J55: 667 | K55: 3.9 | L55: 471 | M55: =J55+L55 -> 1138 | N55: =($O$3*J55)+(L55*$O$4)+(G55*($O$5+$O$6)) -> 60030.0114 | O55: =N55*(1+$R$3) -> 62431.21186 | P55: =O55+(N55*$R$4) -> 63673.83309 | Q55: =P55+(G55*$R$5) -> 67965.51009 | R55: =Q55+(G55*$R$6) -> 70044.10009 | S55: =N55/G55 -> 4.909627169 | T55: =Q55/G55 -> 5.558641539 | U55: =_xlfn.RANK.EQ(G55,G$14:G$63) -> 41 | V55: =_xlfn.RANK.EQ(H55,H$14:H$63) -> 29 | W55: =_xlfn.RANK.EQ(M55,M$14:M$63) -> 23 | X55: =_xlfn.RANK.EQ(N55,N$14:N$63) -> 21 | Y55: =_xlfn.RANK.EQ(Q55,Q$14:Q$63) -> 22 | Z55: =_xlfn.RANK.EQ(R55,R$14:R$63) -> 23 | AA55: =H55*-$O$7 -> -30669.12 | AB55: =R55+AA55 -> 39374.98009 | AC55: =_xlfn.RANK.EQ(AB55,AB$14:AB$63) -> 21
A56: =ROW() -> 56 | F56: 2025-10-01 | G56: 12206 | H56: 14625 | I56: 5.2 | J56: 635 | K56: 4.1 | L56: 496 | M56: =J56+L56 -> 1131 | N56: =($O$3*J56)+(L56*$O$4)+(G56*($O$5+$O$6)) -> 59312.5892 | O56: =N56*(1+$R$3) -> 61685.09277 | P56: =O56+(N56*$R$4) -> 62912.86336 | Q56: =P56+(G56*$R$5) -> 67197.16936 | R56: =Q56+(G56*$R$6) -> 69272.18936 | S56: =N56/G56 -> 4.859297821 | T56: =Q56/G56 -> 5.505257198 | U56: =_xlfn.RANK.EQ(G56,G$14:G$63) -> 43 | V56: =_xlfn.RANK.EQ(H56,H$14:H$63) -> 35 | W56: =_xlfn.RANK.EQ(M56,M$14:M$63) -> 28 | X56: =_xlfn.RANK.EQ(N56,N$14:N$63) -> 27 | Y56: =_xlfn.RANK.EQ(Q56,Q$14:Q$63) -> 30 | Z56: =_xlfn.RANK.EQ(R56,R$14:R$63) -> 31 | AA56: =H56*-$O$7 -> -30273.75 | AB56: =R56+AA56 -> 38998.43936 | AC56: =_xlfn.RANK.EQ(AB56,AB$14:AB$63) -> 26
A57: =ROW() -> 57 | F57: 2025-10-01 | G57: 12206 | H57: 14625 | I57: 5.2 | J57: 635 | K57: 4.1 | L57: 496 | M57: =J57+L57 -> 1131 | N57: =($O$3*J57)+(L57*$O$4)+(G57*($O$5+$O$6)) -> 59312.5892 | O57: =N57*(1+$R$3) -> 61685.09277 | P57: =O57+(N57*$R$4) -> 62912.86336 | Q57: =P57+(G57*$R$5) -> 67197.16936 | R57: =Q57+(G57*$R$6) -> 69272.18936 | S57: =N57/G57 -> 4.859297821 | T57: =Q57/G57 -> 5.505257198 | U57: =_xlfn.RANK.EQ(G57,G$14:G$63) -> 43 | V57: =_xlfn.RANK.EQ(H57,H$14:H$63) -> 35 | W57: =_xlfn.RANK.EQ(M57,M$14:M$63) -> 28 | X57: =_xlfn.RANK.EQ(N57,N$14:N$63) -> 27 | Y57: =_xlfn.RANK.EQ(Q57,Q$14:Q$63) -> 30 | Z57: =_xlfn.RANK.EQ(R57,R$14:R$63) -> 31 | AA57: =H57*-$O$7 -> -30273.75 | AB57: =R57+AA57 -> 38998.43936 | AC57: =_xlfn.RANK.EQ(AB57,AB$14:AB$63) -> 26
A58: =ROW() -> 58 | F58: 2025-10-01 | G58: 11995 | H58: 14827 | I58: 5.5 | J58: 655 | K58: 4.2 | L58: 498 | M58: =J58+L58 -> 1153 | N58: =($O$3*J58)+(L58*$O$4)+(G58*($O$5+$O$6)) -> 60662.279 | O58: =N58*(1+$R$3) -> 63088.77016 | P58: =O58+(N58*$R$4) -> 64344.47934 | Q58: =P58+(G58*$R$5) -> 68554.72434 | R58: =Q58+(G58*$R$6) -> 70593.87434 | S58: =N58/G58 -> 5.057297124 | T58: =Q58/G58 -> 5.715275059 | U58: =_xlfn.RANK.EQ(G58,G$14:G$63) -> 45 | V58: =_xlfn.RANK.EQ(H58,H$14:H$63) -> 27 | W58: =_xlfn.RANK.EQ(M58,M$14:M$63) -> 15 | X58: =_xlfn.RANK.EQ(N58,N$14:N$63) -> 15 | Y58: =_xlfn.RANK.EQ(Q58,Q$14:Q$63) -> 14 | Z58: =_xlfn.RANK.EQ(R58,R$14:R$63) -> 14 | AA58: =H58*-$O$7 -> -30691.89 | AB58: =R58+AA58 -> 39901.98434 | AC58: =_xlfn.RANK.EQ(AB58,AB$14:AB$63) -> 14
A59: =ROW() -> 59 | F59: 2025-10-01 | G59: 11995 | H59: 14827 | I59: 5.5 | J59: 655 | K59: 4.2 | L59: 498 | M59: =J59+L59 -> 1153 | N59: =($O$3*J59)+(L59*$O$4)+(G59*($O$5+$O$6)) -> 60662.279 | O59: =N59*(1+$R$3) -> 63088.77016 | P59: =O59+(N59*$R$4) -> 64344.47934 | Q59: =P59+(G59*$R$5) -> 68554.72434 | R59: =Q59+(G59*$R$6) -> 70593.87434 | S59: =N59/G59 -> 5.057297124 | T59: =Q59/G59 -> 5.715275059 | U59: =_xlfn.RANK.EQ(G59,G$14:G$63) -> 45 | V59: =_xlfn.RANK.EQ(H59,H$14:H$63) -> 27 | W59: =_xlfn.RANK.EQ(M59,M$14:M$63) -> 15 | X59: =_xlfn.RANK.EQ(N59,N$14:N$63) -> 15 | Y59: =_xlfn.RANK.EQ(Q59,Q$14:Q$63) -> 14 | Z59: =_xlfn.RANK.EQ(R59,R$14:R$63) -> 14 | AA59: =H59*-$O$7 -> -30691.89 | AB59: =R59+AA59 -> 39901.98434 | AC59: =_xlfn.RANK.EQ(AB59,AB$14:AB$63) -> 14
A60: =ROW() -> 60 | F60: 2025-10-01 | G60: 10935 | H60: 15003 | I60: 6.3 | J60: 694 | K60: 4.5 | L60: 493 | M60: =J60+L60 -> 1187 | N60: =($O$3*J60)+(L60*$O$4)+(G60*($O$5+$O$6)) -> 63015.617 | O60: =N60*(1+$R$3) -> 65536.24168 | P60: =O60+(N60*$R$4) -> 66840.66495 | Q60: =P60+(G60*$R$5) -> 70678.84995 | R60: =Q60+(G60*$R$6) -> 72537.79995 | S60: =N60/G60 -> 5.762745039 | T60: =Q60/G60 -> 6.463543663 | U60: =_xlfn.RANK.EQ(G60,G$14:G$63) -> 47 | V60: =_xlfn.RANK.EQ(H60,H$14:H$63) -> 15 | W60: =_xlfn.RANK.EQ(M60,M$14:M$63) -> 9 | X60: =_xlfn.RANK.EQ(N60,N$14:N$63) -> 9 | Y60: =_xlfn.RANK.EQ(Q60,Q$14:Q$63) -> 9 | Z60: =_xlfn.RANK.EQ(R60,R$14:R$63) -> 9 | AA60: =H60*-$O$7 -> -31056.21 | AB60: =R60+AA60 -> 41481.58995 | AC60: =_xlfn.RANK.EQ(AB60,AB$14:AB$63) -> 9
A61: =ROW() -> 61 | F61: 2025-10-01 | G61: 10935 | H61: 15003 | I61: 6.3 | J61: 694 | K61: 4.5 | L61: 493 | M61: =J61+L61 -> 1187 | N61: =($O$3*J61)+(L61*$O$4)+(G61*($O$5+$O$6)) -> 63015.617 | O61: =N61*(1+$R$3) -> 65536.24168 | P61: =O61+(N61*$R$4) -> 66840.66495 | Q61: =P61+(G61*$R$5) -> 70678.84995 | R61: =Q61+(G61*$R$6) -> 72537.79995 | S61: =N61/G61 -> 5.762745039 | T61: =Q61/G61 -> 6.463543663 | U61: =_xlfn.RANK.EQ(G61,G$14:G$63) -> 47 | V61: =_xlfn.RANK.EQ(H61,H$14:H$63) -> 15 | W61: =_xlfn.RANK.EQ(M61,M$14:M$63) -> 9 | X61: =_xlfn.RANK.EQ(N61,N$14:N$63) -> 9 | Y61: =_xlfn.RANK.EQ(Q61,Q$14:Q$63) -> 9 | Z61: =_xlfn.RANK.EQ(R61,R$14:R$63) -> 9 | AA61: =H61*-$O$7 -> -31056.21 | AB61: =R61+AA61 -> 41481.58995 | AC61: =_xlfn.RANK.EQ(AB61,AB$14:AB$63) -> 9
A62: =ROW() -> 62 | F62: 2025-10-01 | G62: 10843 | H62: 14550 | I62: 6.2 | J62: 668 | K62: 4.4 | L62: 479 | M62: =J62+L62 -> 1147 | N62: =($O$3*J62)+(L62*$O$4)+(G62*($O$5+$O$6)) -> 60796.5626 | O62: =N62*(1+$R$3) -> 63228.4251 | P62: =O62+(N62*$R$4) -> 64486.91395 | Q62: =P62+(G62*$R$5) -> 68292.80695 | R62: =Q62+(G62*$R$6) -> 70136.11695 | S62: =N62/G62 -> 5.606987236 | T62: =Q62/G62 -> 6.298331361 | U62: =_xlfn.RANK.EQ(G62,G$14:G$63) -> 49 | V62: =_xlfn.RANK.EQ(H62,H$14:H$63) -> 40 | W62: =_xlfn.RANK.EQ(M62,M$14:M$63) -> 19 | X62: =_xlfn.RANK.EQ(N62,N$14:N$63) -> 12 | Y62: =_xlfn.RANK.EQ(Q62,Q$14:Q$63) -> 17 | Z62: =_xlfn.RANK.EQ(R62,R$14:R$63) -> 21 | AA62: =H62*-$O$7 -> -30118.5 | AB62: =R62+AA62 -> 40017.61695 | AC62: =_xlfn.RANK.EQ(AB62,AB$14:AB$63) -> 12
A63: =ROW() -> 63 | F63: 2025-10-01 | G63: 10843 | H63: 14550 | I63: 6.2 | J63: 668 | K63: 4.4 | L63: 479 | M63: =J63+L63 -> 1147 | N63: =($O$3*J63)+(L63*$O$4)+(G63*($O$5+$O$6)) -> 60796.5626 | O63: =N63*(1+$R$3) -> 63228.4251 | P63: =O63+(N63*$R$4) -> 64486.91395 | Q63: =P63+(G63*$R$5) -> 68292.80695 | R63: =Q63+(G63*$R$6) -> 70136.11695 | S63: =N63/G63 -> 5.606987236 | T63: =Q63/G63 -> 6.298331361 | U63: =_xlfn.RANK.EQ(G63,G$14:G$63) -> 49 | V63: =_xlfn.RANK.EQ(H63,H$14:H$63) -> 40 | W63: =_xlfn.RANK.EQ(M63,M$14:M$63) -> 19 | X63: =_xlfn.RANK.EQ(N63,N$14:N$63) -> 12 | Y63: =_xlfn.RANK.EQ(Q63,Q$14:Q$63) -> 17 | Z63: =_xlfn.RANK.EQ(R63,R$14:R$63) -> 21 | AA63: =H63*-$O$7 -> -30118.5 | AB63: =R63+AA63 -> 40017.61695 | AC63: =_xlfn.RANK.EQ(AB63,AB$14:AB$63) -> 12
A64: =ROW() -> 64
A65: =ROW() -> 65
A66: =ROW() -> 66
A67: =ROW() -> 67
A68: =ROW() -> 68
A69: =ROW() -> 69
A70: =ROW() -> 70
A71: =ROW() -> 71
A72: =ROW() -> 72
A73: =ROW() -> 73
A74: =ROW() -> 74
A75: =ROW() -> 75
A76: =ROW() -> 76
A77: =ROW() -> 77
A78: =ROW() -> 78
A79: =ROW() -> 79
A80: =ROW() -> 80
A81: =ROW() -> 81
A82: =ROW() -> 82
A83: =ROW() -> 83
A84: =ROW() -> 84
A85: =ROW() -> 85
A86: =ROW() -> 86
A87: =ROW() -> 87
A88: =ROW() -> 88
A89: =ROW() -> 89
A90: =ROW() -> 90

Sheet Diagram
C2: Antal kor inom respektive intervall netto Mjölk minus foder
